[Event "*** SCC Grand Prix: Titled Tuesday Blitz"]
[Site "Chess.com"]
[Date "2020.06.23"]
[Round "1"]
[White "kuban1991"]
[Black "profofchess"]
[Result "1-0"]
[WhiteElo "2724"]
[BlackElo "2379"]
[TimeControl "180+1"]
[EndTime "10:07:56 PDT"]
[Termination "kuban1991 won on time"]

1. Nf3 {[%clk 0:02:53.9]} 1... Nc6 {[%clk 0:02:59.8]} 2. d4 {[%clk 0:02:53.2]}
2... d5 {[%clk 0:03:00.1]} 3. g3 {[%clk 0:02:53.6]} 3... Bg4 {[%clk 0:02:59.5]}
4. Bg2 {[%clk 0:02:53.7]} 4... Nf6 {[%clk 0:02:58.9]} 5. O-O {[%clk 0:02:53.2]}
5... e6 {[%clk 0:02:59.3]} 6. c4 {[%clk 0:02:47.5]} 6... Bd6 {[%clk 0:02:58.9]}
7. Nc3 {[%clk 0:02:46.9]} 7... O-O {[%clk 0:02:58.6]} 8. Bg5 {[%clk 0:02:45]}
8... dxc4 {[%clk 0:02:46.4]} 9. e4 {[%clk 0:02:41.3]} 9... Be7 {[%clk
0:02:46.3]} 10. Be3 {[%clk 0:02:35.7]} 10... b5 {[%clk 0:02:18.1]} 11. h3 {[%clk
0:02:31]} 11... Bh5 {[%clk 0:02:11.9]} 12. g4 {[%clk 0:02:08.3]} 12... Bg6
{[%clk 0:02:11.3]} 13. Nh4 {[%clk 0:02:08.7]} 13... b4 {[%clk 0:02:06.5]} 14.
Nxg6 {[%clk 0:02:08.5]} 14... hxg6 {[%clk 0:02:05]} 15. Ne2 {[%clk 0:02:08.7]}
15... e5 {[%clk 0:01:46.2]} 16. Nc1 {[%clk 0:02:06]} 16... exd4 {[%clk 0:01:33]}
17. e5 {[%clk 0:01:54.2]} 17... Nd5 {[%clk 0:01:30.4]} 18. Bxd4 {[%clk 0:01:52]}
18... a5 {[%clk 0:00:44.4]} 19. Ne2 {[%clk 0:01:47.9]} 19... Ra6 {[%clk
0:00:37.5]} 20. Rc1 {[%clk 0:01:46.5]} 20... Nxd4 {[%clk 0:00:23.6]} 21. Qxd4
{[%clk 0:01:47.4]} 21... Nb6 {[%clk 0:00:23.7]} 22. Qe4 {[%clk 0:01:35.8]} 22...
Bg5 {[%clk 0:00:15.3]} 23. f4 {[%clk 0:01:32.4]} 23... Be7 {[%clk 0:00:15.5]}
24. Rfd1 {[%clk 0:01:32.3]} 24... Bc5+ {[%clk 0:00:15.7]} 25. Kh2 {[%clk
0:01:28]} 25... Qe7 {[%clk 0:00:15.9]} 26. Ng3 {[%clk 0:01:15.8]} 26... Re8
{[%clk 0:00:15.9]} 27. Qc6 {[%clk 0:01:11.8]} 27... Ra7 {[%clk 0:00:15.2]} 28.
Qf3 {[%clk 0:01:05]} 28... g5 {[%clk 0:00:13.7]} 29. Nf5 {[%clk 0:00:46]} 29...
Qe6 {[%clk 0:00:13.8]} 30. Qc6 {[%clk 0:00:38.8]} 30... gxf4 {[%clk 0:00:12.2]}
31. Qxc5 {[%clk 0:00:37.8]} 31... g6 {[%clk 0:00:10.6]} 32. Nh6+ {[%clk
0:00:26.7]} 32... Kg7 {[%clk 0:00:10.9]} 33. g5 {[%clk 0:00:27.6]} 33... Qxe5
{[%clk 0:00:11.2]} 34. Qxe5+ {[%clk 0:00:28]} 34... Rxe5 {[%clk 0:00:11.9]} 35.
h4 {[%clk 0:00:28]} 35... Re3 {[%clk 0:00:11.2]} 36. Rf1 {[%clk 0:00:25]} 36...
c3 {[%clk 0:00:08.4]} 37. bxc3 {[%clk 0:00:24.5]} 37... bxc3 {[%clk 0:00:08.3]}
38. Rxf4 {[%clk 0:00:24.3]} 38... c5 {[%clk 0:00:08]} 39. Ng4 {[%clk 0:00:21.7]}
39... Rd3 {[%clk 0:00:06.3]} 40. Nf2 {[%clk 0:00:17.1]} 40... Re3 {[%clk
0:00:06]} 41. Nd1 {[%clk 0:00:17.4]} 41... Re2 {[%clk 0:00:03.3]} 42. Nxc3
{[%clk 0:00:16.2]} 42... Rb2 {[%clk 0:00:03.6]} 43. a4 {[%clk 0:00:15]} 43...
Rd7 {[%clk 0:00:03.5]} 44. Ne4 {[%clk 0:00:15.1]} 44... Rd4 {[%clk 0:00:03.1]}
45. Rcf1 {[%clk 0:00:14.2]} 45... f5 {[%clk 0:00:02.2]} 46. gxf6+ {[%clk
0:00:14.1]} 46... Kf8 {[%clk 0:00:02.5]} 47. Ng5 {[%clk 0:00:14.2]} 47... Rdd2
{[%clk 0:00:02]} 48. Rg4 {[%clk 0:00:14.1]} 48... Nd5 {[%clk 0:00:01.1]} 49. f7
{[%clk 0:00:14.2]} 49... Ne3 {[%clk 0:00:01.3]} 50. Ne6+ {[%clk 0:00:14.1]}
50... Ke7 {[%clk 0:00:01.1]} 51. f8=Q+ {[%clk 0:00:15]} 51... Kxe6 {[%clk
0:00:01.2]} 52. Qe8+ {[%clk 0:00:14.4]} 52... Kd6 {[%clk 0:00:01.2]} 53. Qxe3
{[%clk 0:00:15]} 53... Rxg2+ {[%clk 0:00:01.4]} 54. Rxg2 {[%clk 0:00:15.9]} 1-0

[Event "*** SCC Grand Prix: Titled Tuesday Blitz"]
[Site "Chess.com"]
[Date "2020.06.23"]
[Round "1"]
[White "dennisodessa"]
[Black "GregShahade"]
[Result "0-1"]
[WhiteElo "2251"]
[BlackElo "2578"]
[TimeControl "180+1"]
[EndTime "10:07:57 PDT"]
[Termination "GregShahade won by resignation"]

1. d4 {[%clk 0:02:59.1]} 1... Nf6 {[%clk 0:02:59]} 2. c4 {[%clk 0:02:59.3]} 2...
g6 {[%clk 0:02:59.4]} 3. Nc3 {[%clk 0:02:59.5]} 3... d5 {[%clk 0:02:59.3]} 4.
Bg5 {[%clk 0:02:59.2]} 4... Ne4 {[%clk 0:02:57.4]} 5. Nxe4 {[%clk 0:02:59.5]}
5... dxe4 {[%clk 0:02:57]} 6. Qd2 {[%clk 0:03:00.2]} 6... c5 {[%clk 0:02:53.6]}
7. d5 {[%clk 0:03:00.1]} 7... Bg7 {[%clk 0:02:53]} 8. e3 {[%clk 0:03:00.7]} 8...
O-O {[%clk 0:02:49]} 9. Ne2 {[%clk 0:03:01.3]} 9... h6 {[%clk 0:02:23.7]} 10.
Bh4 {[%clk 0:02:55.9]} 10... Nd7 {[%clk 0:02:17]} 11. Nc3 {[%clk 0:02:53.6]}
11... g5 {[%clk 0:02:16.4]} 12. Bg3 {[%clk 0:02:53.5]} 12... f5 {[%clk
0:02:17.1]} 13. Be2 {[%clk 0:02:52.1]} 13... Ne5 {[%clk 0:02:09.1]} 14. h4
{[%clk 0:02:52.2]} 14... Bd7 {[%clk 0:02:02.2]} 15. hxg5 {[%clk 0:02:45.6]}
15... hxg5 {[%clk 0:02:01.6]} 16. f4 {[%clk 0:02:39.5]} 16... exf3 {[%clk
0:01:56.1]} 17. gxf3 {[%clk 0:02:39.5]} 17... Qb6 {[%clk 0:01:47.5]} 18. f4
{[%clk 0:02:22.3]} 18... gxf4 {[%clk 0:01:30.3]} 19. Bxf4 {[%clk 0:02:14.5]}
19... Ng6 {[%clk 0:01:17.1]} 20. O-O-O {[%clk 0:02:04.8]} 20... Nxf4 {[%clk
0:01:12.1]} 21. exf4 {[%clk 0:02:04.8]} 21... Rf6 {[%clk 0:01:03.3]} 22. Rdg1
{[%clk 0:02:02.5]} 22... Rh6 {[%clk 0:00:56.8]} 23. Bh5 {[%clk 0:01:37.9]} 23...
Qf6 {[%clk 0:00:49.9]} 24. Rg5 {[%clk 0:01:25.8]} 24... Kh8 {[%clk 0:00:32.3]}
25. Rhg1 {[%clk 0:00:54.4]} 25... Rg8 {[%clk 0:00:31.6]} 26. Qg2 {[%clk
0:00:47.7]} 26... a6 {[%clk 0:00:18.3]} 27. Rh1 {[%clk 0:00:19.2]} 27... Be8
{[%clk 0:00:11.9]} 28. Bxe8 {[%clk 0:00:10.4]} 28... Rxe8 {[%clk 0:00:12.8]} 29.
Rxh6+ {[%clk 0:00:07.3]} 29... Bxh6 {[%clk 0:00:12.6]} 30. Rh5 {[%clk
0:00:07.8]} 30... Rg8 {[%clk 0:00:10.6]} 31. Qh3 {[%clk 0:00:08.5]} 31... Kh7
{[%clk 0:00:10.4]} 32. Qxf5+ {[%clk 0:00:07.8]} 32... Qxf5 {[%clk 0:00:10.4]}
33. Rxf5 {[%clk 0:00:08.1]} 33... Kg6 {[%clk 0:00:11]} 34. Re5 {[%clk
0:00:08.3]} 34... Bxf4+ {[%clk 0:00:11.3]} 35. Kc2 {[%clk 0:00:08.8]} 35... Bxe5
{[%clk 0:00:11.7]} 36. Ne4 {[%clk 0:00:09.1]} 36... b6 {[%clk 0:00:09.8]} 37. b3
{[%clk 0:00:09.8]} 37... Rh8 {[%clk 0:00:09.9]} 38. Kd3 {[%clk 0:00:10.5]} 38...
Rh3+ {[%clk 0:00:10.1]} 39. Ke2 {[%clk 0:00:10.6]} 39... Kf5 {[%clk 0:00:10.3]}
40. Nd2 {[%clk 0:00:10]} 40... Rh2+ {[%clk 0:00:10.5]} 41. Kd3 {[%clk
0:00:10.8]} 41... Rxd2+ {[%clk 0:00:09.8]} 42. Kxd2 {[%clk 0:00:10.1]} 42... Ke4
{[%clk 0:00:10.4]} 43. Ke2 {[%clk 0:00:10.5]} 43... Kd4 {[%clk 0:00:10.6]} 44.
Kd2 {[%clk 0:00:11.1]} 44... Bf4+ {[%clk 0:00:11.1]} 45. Kc2 {[%clk 0:00:11.6]}
45... Bd6 {[%clk 0:00:11.1]} 46. a4 {[%clk 0:00:11.9]} 46... Be5 {[%clk
0:00:10.2]} 47. Kd2 {[%clk 0:00:12.6]} 47... Bf4+ {[%clk 0:00:09.8]} 48. Ke2
{[%clk 0:00:13.1]} 48... Kc3 {[%clk 0:00:09.8]} 0-1

[Event "*** SCC Grand Prix: Titled Tuesday Blitz"]
[Site "Chess.com"]
[Date "2020.06.23"]
[Round "1"]
[White "OnePeculiarConundrum"]
[Black "Muracle"]
[Result "0-1"]
[WhiteElo "2263"]
[BlackElo "2605"]
[TimeControl "180+1"]
[EndTime "10:07:59 PDT"]
[Termination "Muracle won by checkmate"]

1. e4 {[%clk 0:03:00.8]} 1... c5 {[%clk 0:02:57.5]} 2. Nf3 {[%clk 0:03:00.3]}
2... Nc6 {[%clk 0:02:57.2]} 3. Bb5 {[%clk 0:02:59.1]} 3... g6 {[%clk 0:02:56.4]}
4. Bxc6 {[%clk 0:02:57.9]} 4... bxc6 {[%clk 0:02:54.9]} 5. c3 {[%clk 0:02:52.5]}
5... Bg7 {[%clk 0:02:54.2]} 6. O-O {[%clk 0:02:51.7]} 6... Nf6 {[%clk
0:02:53.4]} 7. e5 {[%clk 0:02:49.6]} 7... Nd5 {[%clk 0:02:53.1]} 8. c4 {[%clk
0:02:46.8]} 8... Nb6 {[%clk 0:02:48.1]} 9. b3 {[%clk 0:02:45.7]} 9... O-O {[%clk
0:02:44.9]} 10. Bb2 {[%clk 0:02:44.5]} 10... d5 {[%clk 0:02:44.6]} 11. d3 {[%clk
0:02:41.5]} 11... Rb8 {[%clk 0:02:33.1]} 12. Qc2 {[%clk 0:02:35.9]} 12... dxc4
{[%clk 0:02:27.4]} 13. dxc4 {[%clk 0:02:34.8]} 13... Bf5 {[%clk 0:02:26.5]} 14.
Qd2 {[%clk 0:02:27.6]} 14... Nxc4 {[%clk 0:02:14.5]} 15. Qxd8 {[%clk 0:02:13.8]}
15... Rfxd8 {[%clk 0:02:12.4]} 16. Bc3 {[%clk 0:02:11.3]} 16... Nb6 {[%clk
0:02:09]} 17. Nbd2 {[%clk 0:02:06.4]} 17... Rd5 {[%clk 0:01:53.6]} 18. Rac1
{[%clk 0:01:51.7]} 18... Bh6 {[%clk 0:01:41]} 19. Ra1 {[%clk 0:01:15.2]} 19...
Rd3 {[%clk 0:01:27.7]} 20. Ba5 {[%clk 0:01:12.4]} 20... Nd5 {[%clk 0:01:23.1]}
21. Nc4 {[%clk 0:01:06.1]} 21... Nf4 {[%clk 0:01:09.8]} 22. Rfe1 {[%clk
0:00:58.2]} 22... Bg4 {[%clk 0:00:43.1]} 23. Nb2 {[%clk 0:00:41.4]} 23... Rd5
{[%clk 0:00:31.7]} 24. Rad1 {[%clk 0:00:33.7]} 24... Bxf3 {[%clk 0:00:27.1]} 25.
gxf3 {[%clk 0:00:33.5]} 25... Bg7 {[%clk 0:00:27.6]} 26. Nc4 {[%clk 0:00:30.8]}
26... Nd3 {[%clk 0:00:26.4]} 27. Re3 {[%clk 0:00:28.3]} 27... Nb4 {[%clk
0:00:24.8]} 28. Rf1 {[%clk 0:00:20.9]} 28... Nc2 {[%clk 0:00:24.2]} 29. Re2
{[%clk 0:00:20.9]} 29... Nd4 {[%clk 0:00:24.4]} 30. Re3 {[%clk 0:00:21.4]} 30...
Bh6 {[%clk 0:00:24.5]} 31. Re4 {[%clk 0:00:20.1]} 31... Nxf3+ {[%clk 0:00:24.2]}
32. Kg2 {[%clk 0:00:20.6]} 32... Nd4 {[%clk 0:00:23.1]} 33. Rd1 {[%clk
0:00:20.1]} 33... Ne6 {[%clk 0:00:23.2]} 34. Ree1 {[%clk 0:00:18.6]} 34... Nf4+
{[%clk 0:00:18.6]} 35. Kf3 {[%clk 0:00:18.8]} 35... Nd3 {[%clk 0:00:18.8]} 36.
Rg1 {[%clk 0:00:17.9]} 36... Bg7 {[%clk 0:00:18.5]} 37. Ke2 {[%clk 0:00:17.3]}
37... Nxe5 {[%clk 0:00:17.2]} 38. Nxe5 {[%clk 0:00:16.7]} 38... Bxe5 {[%clk
0:00:15.9]} 39. Rxd5 {[%clk 0:00:16.4]} 39... cxd5 {[%clk 0:00:15.9]} 40. Rc1
{[%clk 0:00:17.3]} 40... Bd6 {[%clk 0:00:16.2]} 41. Bd2 {[%clk 0:00:16.5]} 41...
f6 {[%clk 0:00:15.8]} 42. Be3 {[%clk 0:00:17]} 42... d4 {[%clk 0:00:15.8]} 43.
Bd2 {[%clk 0:00:17.5]} 43... Kf7 {[%clk 0:00:16]} 44. h3 {[%clk 0:00:18.1]}
44... e5 {[%clk 0:00:16]} 45. Kd3 {[%clk 0:00:18.8]} 45... Ke6 {[%clk
0:00:16.4]} 46. f3 {[%clk 0:00:19.5]} 46... Kd5 {[%clk 0:00:16.5]} 47. Rf1
{[%clk 0:00:20.1]} 47... f5 {[%clk 0:00:16.7]} 48. Rc1 {[%clk 0:00:20.4]} 48...
e4+ {[%clk 0:00:16.6]} 49. fxe4+ {[%clk 0:00:21.3]} 49... fxe4+ {[%clk
0:00:17.5]} 50. Kc2 {[%clk 0:00:21.9]} 50... e3 {[%clk 0:00:17.2]} 51. Ba5
{[%clk 0:00:21.6]} 51... Rf8 {[%clk 0:00:17]} 52. Kd3 {[%clk 0:00:22.1]} 52...
Rf2 {[%clk 0:00:16.8]} 53. Rc2 {[%clk 0:00:20.7]} 53... Rxc2 {[%clk 0:00:15.4]}
54. Kxc2 {[%clk 0:00:21.6]} 54... Ke4 {[%clk 0:00:16.2]} 55. Kd1 {[%clk
0:00:21.9]} 55... d3 {[%clk 0:00:16.4]} 56. b4 {[%clk 0:00:22.8]} 56... e2+
{[%clk 0:00:16.6]} 57. Kd2 {[%clk 0:00:23.2]} 57... Bf4+ {[%clk 0:00:17]} 58.
Ke1 {[%clk 0:00:23.6]} 58... Bg3+ {[%clk 0:00:13.8]} 59. Kd2 {[%clk 0:00:23.9]}
59... e1=Q# {[%clk 0:00:14.1]} 0-1

[Event "*** SCC Grand Prix: Titled Tuesday Blitz"]
[Site "Chess.com"]
[Date "2020.06.23"]
[Round "1"]
[White "ChessQueen"]
[Black "Chernov_Mikhail"]
[Result "1-0"]
[WhiteElo "2702"]
[BlackElo "2358"]
[TimeControl "180+1"]
[EndTime "10:08:02 PDT"]
[Termination "ChessQueen won by resignation"]

1. e4 {[%clk 0:03:00.5]} 1... c5 {[%clk 0:02:53.6]} 2. c3 {[%clk 0:02:57]} 2...
Nf6 {[%clk 0:02:46.3]} 3. e5 {[%clk 0:02:56.8]} 3... Nd5 {[%clk 0:02:46.3]} 4.
d4 {[%clk 0:02:57]} 4... cxd4 {[%clk 0:02:47.2]} 5. Nf3 {[%clk 0:02:57.2]} 5...
Nc6 {[%clk 0:02:46.4]} 6. cxd4 {[%clk 0:02:56.8]} 6... d6 {[%clk 0:02:46.4]} 7.
Bc4 {[%clk 0:02:56]} 7... e6 {[%clk 0:02:46.5]} 8. O-O {[%clk 0:02:54.8]} 8...
Be7 {[%clk 0:02:45.9]} 9. Qe2 {[%clk 0:02:54.8]} 9... O-O {[%clk 0:02:41.8]} 10.
Rd1 {[%clk 0:02:52.4]} 10... dxe5 {[%clk 0:02:24.8]} 11. dxe5 {[%clk 0:02:49.4]}
11... Qa5 {[%clk 0:02:25.2]} 12. Bd2 {[%clk 0:02:16.3]} 12... Bb4 {[%clk
0:02:07.3]} 13. a3 {[%clk 0:02:11.5]} 13... Bxd2 {[%clk 0:02:06.6]} 14. Nbxd2
{[%clk 0:02:11.7]} 14... Nf4 {[%clk 0:01:45.3]} 15. Qe4 {[%clk 0:02:02.4]} 15...
Ng6 {[%clk 0:01:45.8]} 16. b4 {[%clk 0:01:34]} 16... Qc7 {[%clk 0:01:37.6]} 17.
Re1 {[%clk 0:01:34.2]} 17... Rd8 {[%clk 0:01:18.9]} 18. Rac1 {[%clk 0:01:15.6]}
18... Qb8 {[%clk 0:01:02.5]} 19. Nb3 {[%clk 0:01:13.3]} 19... Bd7 {[%clk
0:00:55.3]} 20. h4 {[%clk 0:01:09.8]} 20... h6 {[%clk 0:00:42.5]} 21. h5 {[%clk
0:01:07.5]} 21... Nf8 {[%clk 0:00:42.6]} 22. Nc5 {[%clk 0:01:07.4]} 22... Be8
{[%clk 0:00:38.1]} 23. Qg4 {[%clk 0:01:05.8]} 23... b6 {[%clk 0:00:22.2]} 24.
Ne4 {[%clk 0:01:05.7]} 24... Nxe5 {[%clk 0:00:17.2]} 25. Nf6+ {[%clk 0:01:05.7]}
25... Kh8 {[%clk 0:00:15.5]} 26. Nxe5 {[%clk 0:00:58.6]} 26... gxf6 {[%clk
0:00:15.8]} 27. Nf3 {[%clk 0:00:42.2]} 27... Bc6 {[%clk 0:00:16]} 28. Re3 {[%clk
0:00:36.4]} 28... Bxf3 {[%clk 0:00:15.5]} 29. Rxf3 {[%clk 0:00:35.8]} 29... Qe5
{[%clk 0:00:14.7]} 30. Bd3 {[%clk 0:00:31.6]} 30... Qg5 {[%clk 0:00:07.9]} 31.
Qxg5 {[%clk 0:00:29.2]} 31... hxg5 {[%clk 0:00:08.8]} 32. Be4 {[%clk 0:00:28.1]}
32... Kg7 {[%clk 0:00:09.7]} 33. Bxa8 {[%clk 0:00:27.5]} 33... Rxa8 {[%clk
0:00:10.6]} 34. Rc7 {[%clk 0:00:27.6]} 34... a5 {[%clk 0:00:10.5]} 35. b5 {[%clk
0:00:27.2]} 35... f5 {[%clk 0:00:10.5]} 36. Rd3 {[%clk 0:00:26.3]} 36... g4
{[%clk 0:00:09.3]} 37. Rd6 {[%clk 0:00:25.9]} 37... Rb8 {[%clk 0:00:08.9]} 38.
g3 {[%clk 0:00:23.5]} 38... Kf6 {[%clk 0:00:09.2]} 39. Rcc6 {[%clk 0:00:22.5]}
39... Nh7 {[%clk 0:00:09.3]} 40. Rxb6 {[%clk 0:00:22.6]} 40... Rc8 {[%clk
0:00:09.8]} 41. Rbc6 {[%clk 0:00:23.1]} 41... Rb8 {[%clk 0:00:10]} 42. b6 {[%clk
0:00:23.4]} 42... Ng5 {[%clk 0:00:10.5]} 43. Kg2 {[%clk 0:00:23.3]} 43... Nf3
{[%clk 0:00:10.7]} 44. Rc3 {[%clk 0:00:20.7]} 44... Rh8 {[%clk 0:00:10.8]} 45.
b7 {[%clk 0:00:19.8]} 45... Rxh5 {[%clk 0:00:10.9]} 46. Rxf3 {[%clk 0:00:19.8]}
46... gxf3+ {[%clk 0:00:11]} 47. Kxf3 {[%clk 0:00:20]} 47... Rh8 {[%clk
0:00:11.9]} 48. Rb6 {[%clk 0:00:18.9]} 48... Rb8 {[%clk 0:00:12.8]} 49. Ke3
{[%clk 0:00:19.3]} 49... Ke5 {[%clk 0:00:12.7]} 50. Rb5+ {[%clk 0:00:19.3]}
50... Kd6 {[%clk 0:00:12.8]} 51. Kf4 {[%clk 0:00:19.7]} 51... f6 {[%clk
0:00:12.6]} 52. f3 {[%clk 0:00:19.1]} 52... Ke7 {[%clk 0:00:12.6]} 53. Rb6
{[%clk 0:00:19]} 53... Kf7 {[%clk 0:00:12.7]} 54. Ke3 {[%clk 0:00:19.4]} 54...
Ke7 {[%clk 0:00:12]} 55. Kd4 {[%clk 0:00:20]} 55... Kd7 {[%clk 0:00:11.9]} 56.
Kc5 {[%clk 0:00:20.6]} 56... Ke7 {[%clk 0:00:10.3]} 57. Kc6 {[%clk 0:00:20.6]}
57... e5 {[%clk 0:00:10.9]} 58. Kc7 {[%clk 0:00:20.7]} 1-0

[Event "*** SCC Grand Prix: Titled Tuesday Blitz"]
[Site "Chess.com"]
[Date "2020.06.23"]
[Round "1"]
[White "talaicito"]
[Black "Isajevsky_Anton"]
[Result "0-1"]
[WhiteElo "2089"]
[BlackElo "2506"]
[TimeControl "180+1"]
[EndTime "10:08:06 PDT"]
[Termination "Isajevsky_Anton won on time"]

1. d4 {[%clk 0:03:00.9]} 1... d5 {[%clk 0:02:58.1]} 2. Bf4 {[%clk 0:03:01.4]}
2... Nf6 {[%clk 0:02:57.5]} 3. Nc3 {[%clk 0:03:01.9]} 3... a6 {[%clk 0:02:55]}
4. e3 {[%clk 0:03:02.1]} 4... e6 {[%clk 0:02:54.8]} 5. Nf3 {[%clk 0:03:01.9]}
5... c5 {[%clk 0:02:55.1]} 6. a3 {[%clk 0:02:50.8]} 6... Nc6 {[%clk 0:02:54.6]}
7. Ne5 {[%clk 0:02:45.4]} 7... Bd7 {[%clk 0:02:54]} 8. Be2 {[%clk 0:02:30.7]}
8... Be7 {[%clk 0:02:49.7]} 9. O-O {[%clk 0:02:25.9]} 9... O-O {[%clk
0:02:49.3]} 10. Bf3 {[%clk 0:02:23.9]} 10... cxd4 {[%clk 0:02:47.1]} 11. exd4
{[%clk 0:02:21.4]} 11... Rc8 {[%clk 0:02:46.6]} 12. Ne2 {[%clk 0:02:08.6]} 12...
Ne8 {[%clk 0:02:26.4]} 13. c3 {[%clk 0:02:03]} 13... Nd6 {[%clk 0:02:26.5]} 14.
Ng3 {[%clk 0:01:51.1]} 14... g6 {[%clk 0:02:11]} 15. Re1 {[%clk 0:01:47]} 15...
Nxe5 {[%clk 0:02:08.7]} 16. dxe5 {[%clk 0:01:34.5]} 16... Nc4 {[%clk 0:02:08.8]}
17. Rb1 {[%clk 0:01:33.4]} 17... Re8 {[%clk 0:01:53.5]} 18. Be2 {[%clk
0:01:31.9]} 18... Qb6 {[%clk 0:01:40.4]} 19. Bxc4 {[%clk 0:01:07.4]} 19... Rxc4
{[%clk 0:01:39.7]} 20. Be3 {[%clk 0:01:07.6]} 20... Qc7 {[%clk 0:01:38.8]} 21.
Bd4 {[%clk 0:01:05.6]} 21... a5 {[%clk 0:01:34.2]} 22. Qg4 {[%clk 0:00:53]}
22... Rc8 {[%clk 0:01:06.4]} 23. h4 {[%clk 0:00:50.7]} 23... Qd8 {[%clk
0:01:06.3]} 24. h5 {[%clk 0:00:49.2]} 24... Qf8 {[%clk 0:01:06]} 25. hxg6 {[%clk
0:00:44.8]} 25... fxg6 {[%clk 0:01:06.2]} 26. Re3 {[%clk 0:00:40.3]} 26... Kh8
{[%clk 0:00:58.1]} 27. Ne2 {[%clk 0:00:32.2]} 27... Qf5 {[%clk 0:00:48.3]} 28.
Qxf5 {[%clk 0:00:26.4]} 28... gxf5 {[%clk 0:00:48.4]} 29. b3 {[%clk 0:00:19.2]}
29... R4c6 {[%clk 0:00:44.8]} 30. a4 {[%clk 0:00:19.2]} 30... Be8 {[%clk
0:00:38.7]} 31. Nf4 {[%clk 0:00:17.4]} 31... Bg5 {[%clk 0:00:26.5]} 32. Rf3
{[%clk 0:00:17.6]} 32... Bxf4 {[%clk 0:00:16.5]} 33. Rxf4 {[%clk 0:00:17.5]}
33... Kg7 {[%clk 0:00:17.3]} 34. Rd1 {[%clk 0:00:16.1]} 34... Bg6 {[%clk
0:00:16.4]} 35. Rd3 {[%clk 0:00:15.7]} 35... Rb8 {[%clk 0:00:16.7]} 36. b4
{[%clk 0:00:13.8]} 36... axb4 {[%clk 0:00:14.4]} 37. cxb4 {[%clk 0:00:13.9]}
37... Rc4 {[%clk 0:00:15.2]} 38. Rb3 {[%clk 0:00:12]} 38... Ra8 {[%clk
0:00:14.4]} 39. a5 {[%clk 0:00:11.6]} 39... Be8 {[%clk 0:00:13.9]} 40. g3 {[%clk
0:00:11.7]} 40... Ba4 {[%clk 0:00:13.3]} 41. Rb2 {[%clk 0:00:12]} 41... Bb5
{[%clk 0:00:13.7]} 42. Kg2 {[%clk 0:00:12]} 42... Rac8 {[%clk 0:00:13.6]} 43.
Bc5 {[%clk 0:00:11.7]} 43... Rxf4 {[%clk 0:00:13.3]} 44. gxf4 {[%clk 0:00:12.1]}
44... Kf7 {[%clk 0:00:13.6]} 45. Kf3 {[%clk 0:00:12.4]} 45... Rg8 {[%clk
0:00:14]} 46. Rb1 {[%clk 0:00:11.3]} 46... h5 {[%clk 0:00:13.8]} 47. Rh1 {[%clk
0:00:11]} 47... Rh8 {[%clk 0:00:13.9]} 48. Rh4 {[%clk 0:00:10.8]} 48... Ba4
{[%clk 0:00:10.2]} 49. Ke2 {[%clk 0:00:09.7]} 49... Bb5+ {[%clk 0:00:10.1]} 50.
Ke3 {[%clk 0:00:09.7]} 50... Kg6 {[%clk 0:00:10.2]} 51. Kd2 {[%clk 0:00:09.2]}
51... Kh6 {[%clk 0:00:07.9]} 52. Be7 {[%clk 0:00:08.3]} 52... Rg8 {[%clk
0:00:07.6]} 53. Bg5+ {[%clk 0:00:08.4]} 53... Kg6 {[%clk 0:00:08.1]} 54. f3
{[%clk 0:00:05.8]} 54... Rc8 {[%clk 0:00:08.4]} 55. Rh1 {[%clk 0:00:04.4]} 55...
Rc4 {[%clk 0:00:08.5]} 56. Rb1 {[%clk 0:00:04.6]} 56... h4 {[%clk 0:00:08.2]}
0-1